fUST/lending_fUST_20241228
["ID","MTS","AMOUNT","RATE_DAILY","PERIOD"]
[346863757,1735333836598,-174.516364,0.00020271,2]
[346863758,1735333836608,-1029.63981,0.00020271,2]
[346863759,1735333836617,-1029.63981,0.00020271,2]
[346863760,1735333836627,-1029.63981,0.00020271,2]
[346863761,1735333836638,-1029.63981,0.00020271,2]
[346863762,1735333836647,-1029.63981,0.00020271,2]
[346863763,1735333836656,-1029.63981,0.00020271,2]
[346863764,1735333836665,-1029.63981,0.00020271,2]
[346863765,1735333836675,-1029.63981,0.00020271,2]
[346863766,1735333836685,-1029.63981,0.00020271,2]
[346863767,1735333836695,-1029.639811,0.00020271,2]
[346863768,1735333836705,-798.107832,0.00020271,2]
[346863769,1735333836715,-798.107832,0.00020271,2]
[346863770,1735333836725,-421.444504,0.00020271,2]
[346863771,1735333836735,-421.444504,0.00020271,2]
[346863772,1735333836745,-151.0,0.00020271,2]
[346863773,1735333836754,-154.956363,0.00020271,2]
[346863774,1735333836764,-154.956363,0.00020271,2]
[346863775,1735333836774,-217.825635,0.00020271,2]
[346863776,1735333836784,-217.825635,0.00020271,2]
[346863777,1735333836793,-241.593755,0.00020271,2]
[346863778,1735333836803,-241.593755,0.00020271,2]
[346863779,1735333836820,-601.72508224,0.00020273,2]
[346863780,1735333836829,-501.12941669,0.00020273,2]
[346863781,1735333836838,-500.0,0.00020273,2]
[346863782,1735333836848,-622.52108526,0.00020273,2]
[346863783,1735333836858,-500.0,0.00020273,2]
[346863784,1735333836867,-162.21862678,0.00020273,2]
[346863785,1735333836876,-500.0,0.00020273,2]
[346863786,1735333836886,-500.20018655,0.00020273,2]
[346863787,1735333836895,-500.0,0.00020273,2]
[346863788,1735333836905,-326.07079273,0.00020273,2]
[346863789,1735333836914,-500.14905054,0.00020273,2]
[346863790,1735333836923,-500.1493309,0.00020273,2]
[346863791,1735333836933,-500.0,0.00020273,2]
[346863792,1735333836943,-499.0,0.00020273,2]
[346863793,1735333836952,-154.956363,0.00020273,2]
[346863794,1735333836961,-154.956368,0.00020273,2]
[346863795,1735333836971,-241.593755,0.00020273,2]
[346863796,1735333836980,-241.593761,0.00020273,2]
[346863797,1735333836989,-154.0,0.00020278,2]
[346863798,1735333836999,-154.0,0.00020278,2]
[346863799,1735333837008,-154.0,0.00020278,2]
[346863800,1735333837018,-154.0,0.00020278,2]
[346863801,1735333837028,-154.0,0.00020278,2]
[346863802,1735333837038,-154.0,0.00020278,2]
[346863803,1735333837048,-154.0,0.00020278,2]
[346863804,1735333837058,-154.0,0.00020278,2]
[346863805,1735333837069,-154.0,0.00020278,2]
[346863806,1735333837078,-154.0,0.00020278,2]
[346863807,1735333837088,-158.01,0.00020278,2]
[346863808,1735333837098,-164.0,0.00020278,2]
[346863809,1735333837109,-33505.29621242,0.00020289,2]
[346863810,1735333837119,-255715.34107209,0.00020289,2]
[346863811,1735333837197,-7311.89651589,0.00020289,2]
[346863812,1735333837209,-5075.2,0.00020289,2]
[346863813,1735333837220,-1113.7875,0.00020289,2]
[346863814,1735333837234,-950.7575,0.00020289,2]
[346863815,1735333837264,872.55,0.00013921,2]
[346863816,1735333837293,500.0,0.00011482,2]
[346863817,1735333837321,242.82,0.00011756,2]
[346863818,1735333837350,872.55,0.00014195,2]
[346863819,1735333837378,872.55,0.00014469,2]
[346863820,1735333837413,872.55,0.00014743,2]
[346863821,1735333837448,872.55,0.00015017,2]
[346863822,1735333837476,500.0,0.00011482,2]
[346863823,1735333837505,872.55,0.00015291,2]
[346863824,1735333837534,500.0,0.00011756,2]
[346863825,1735333837563,500.0,0.0001203,2]
[346863826,1735333837592,872.55,0.00015565,2]
[346863827,1735333837627,872.55,0.00015839,2]
[346863828,1735333837655,500.0,0.00011482,2]
[346863872,1735333838374,-210.66221632,0.00019999,2]
[346863874,1735333838383,-355.44759246,0.00020289,2]
[346863876,1735333838395,-1519.12599083,0.00020289,2]
[346863888,1735333838490,-18151.31832563,0.00020289,2]
[346863890,1735333838502,-132223.01146507,0.00020289,2]
[346863993,1735333839490,-3533.14503112,0.00020289,2]
[346863995,1735333839502,-2408.41595506,0.00020289,2]
[346863997,1735333839514,-961.01068651,0.00020289,2]
[346864002,1735333839546,500.0,0.00011482,2]
[346864006,1735333839582,500.0,0.00011756,2]
[346864010,1735333839611,872.55,0.00016113,2]
[346864015,1735333839640,305.34937568,0.0001203,2]
[346864086,1735333840506,-872.55,0.00016387,2]
[346864088,1735333840516,-436.03,0.00020099,2]
[346864090,1735333840526,-779.72008249,0.00020289,2]
[346864213,1735333841689,-166.77351677,0.00019999,2]
[346864215,1735333841699,-32583.87633514,0.00020289,2]
[346864217,1735333841711,-382.85650905,0.00020289,2]
[346864377,1735333843078,-2453.26009688,0.00020289,2]
[346864383,1735333843133,481.022,0.00023,120]
[346864397,1735333843675,-419.178,0.00016661,2]
[346864398,1735333843766,-304.27323202,0.00016661,2]
[346864399,1735333843807,-26.20668622,0.00016661,2]
[346864400,1735333843826,-122.89208176,0.00016661,2]
[346864401,1735333843837,-132.95292043,0.00016935,2]
[346864402,1735333843849,-739.59707957,0.00016935,2]
[346864403,1735333843859,-872.55,0.00017209,2]
[346864404,1735333843869,-394.0,0.00020183,2]
[346864405,1735333843878,-1764.20716203,0.00020289,2]
[346864451,1735333844369,500.0,0.00011482,2]
[346864636,1735333846145,151.0,0.00012825,2]
[346864663,1735333846410,-872.55,0.00017483,2]
[346864665,1735333846420,-872.55,0.00017757,2]
[346864667,1735333846430,-872.55,0.00018031,2]
[346864669,1735333846440,-180.291891,0.00020271,2]
[346864671,1735333846450,-5160.91136667,0.00020289,2]
[346864673,1735333846460,-798.107832,0.00020289,2]
[346864675,1735333846470,-798.107832,0.00020289,2]
[346864677,1735333846479,-798.107832,0.00020289,2]
[346864679,1735333846489,-798.107822,0.00020289,2]
[346864682,1735333846499,-421.444504,0.00020289,2]
[346864684,1735333846510,-421.444504,0.00020289,2]
[346864686,1735333846520,-421.444504,0.00020289,2]
[346864688,1735333846530,-421.444496,0.00020289,2]
[346864690,1735333846539,-151.0,0.00020289,2]
[346864692,1735333846549,-151.0,0.00020289,2]
[346864694,1735333846559,-217.825635,0.00020289,2]
[346864696,1735333846569,-217.825635,0.00020289,2]
[346864698,1735333846580,-217.825635,0.00020289,2]
[346864700,1735333846590,-217.825639,0.00020289,2]
[346864702,1735333846600,-180.291891,0.00020289,2]
[346864704,1735333846610,-180.291891,0.00020289,2]
[346864706,1735333846620,-180.291891,0.00020289,2]
[346864708,1735333846629,-180.291891,0.00020289,2]
[346864710,1735333846639,-498226.3049681,0.00020289,10]
[346864717,1735333846705,-760.43248209,0.00020289,10]
[346864721,1735333846733,151.0,0.00013673,2]
[346864724,1735333846751,-13494.32,0.00020289,10]
[346864740,1735333846889,-40228.9089632,0.00020289,10]
[346864742,1735333846903,-18254.30193361,0.00020289,10]
[346864745,1735333846916,-7783.91405549,0.00020289,10]
[346864950,1735333849092,500.0,0.00011481,2]
[346864979,1735333849370,500.0,0.00011755,2]
[346864983,1735333849397,500.0,0.00011482,2]
[346865006,1735333849609,151.0,0.00012852,2]
[346865010,1735333849638,500.0,0.00012029,2]
[346865019,1735333849716,500.0,0.00011756,2]
[346865044,1735333849945,500.0,0.00012303,2]
[346865059,1735333850075,151.0,0.00014194,2]
[346865222,1735333852015,402.41636586,0.00011483,2]
[346865373,1735333854027,247.77,0.00011481,2]
[346865449,1735333854737,151.0,0.00012851,2]
[346865481,1735333855025,151.0,0.00013674,2]
[346865915,1735333862433,500.0,0.00011482,2]
[346865916,1735333862697,500.0,0.00011756,2]
[346865917,1735333863033,268.41,0.0001203,2]
[346865918,1735333863605,169.097966,0.00012825,2]
[346865919,1735333863877,169.097966,0.00013673,2]
[346865920,1735333867205,500.0,0.00012824,2]
[346865921,1735333867675,169.097966,0.00012825,2]
[346865922,1735333867959,219.199111,0.00012851,2]
[346865923,1735333867988,169.097966,0.00013673,2]
[346865924,1735333868220,219.199111,0.00013674,2]
[346865925,1735333868340,500.0,0.00011482,2]
[346865926,1735333868580,500.0,0.00011756,2]
[346865927,1735333868744,500.0,0.00011482,2]
[346865928,1735333868775,500.0,0.00013098,2]
[346865929,1735333869022,500.0,0.00011483,2]
[346865930,1735333869556,500.0,0.00013372,2]
[346865931,1735333869668,500.0,0.00011756,2]
[346865932,1735333869916,475.06,0.0001203,2]
[346865933,1735333870122,500.0,0.00013646,2]
[346865934,1735333870796,500.0,0.0001392,2]
[346865935,1735333871012,219.199111,0.00012851,2]
[346865936,1735333871303,219.199111,0.00013674,2]
[346865937,1735333871521,500.0,0.00014194,2]
[346865938,1735333872205,500.0,0.00014468,2]
[346865939,1735333872237,500.0,0.00011482,2]
[346865940,1735333872506,500.0,0.00011756,2]
[346865941,1735333873850,500.0,0.00014742,2]
[346865942,1735333874446,500.0,0.00015016,2]
[346865943,1735333875504,500.0,0.0001529,2]
[346865944,1735333876031,500.0,0.00015564,2]
[346865945,1735333877128,500.0,0.00015838,2]
[346865946,1735333877787,500.0,0.00016112,2]
[346865947,1735333878567,500.0,0.00011482,2]
[346865948,1735333880503,500.0,0.00011482,2]
[346865949,1735333880753,500.0,0.00011756,2]
[346865950,1735333881008,500.0,0.00011481,2]
[346865951,1735333881169,500.0,0.00011755,2]
[346865952,1735333881418,500.0,0.00012029,2]
[346865953,1735333881849,220.26,0.00012303,2]
[346865954,1735333885441,500.0,0.00011481,2]
[346865955,1735333892434,401.23,0.00011482,2]
[346865956,1735333899159,500.0,0.00011482,2]
[346865957,1735333899412,585.34,0.00011756,2]
[346865958,1735333903092,500.0,0.00011482,2]
[346865959,1735333903400,500.0,0.00011756,2]
[346865960,1735333903662,370.11,0.0001203,2]
[346865961,1735333905084,500.0,0.00011483,2]
[346865962,1735333906058,500.0,0.00011482,2]
[346865963,1735333906315,500.0,0.00011756,2]
[346865964,1735333906591,500.0,0.0001203,2]
[346865965,1735333906846,500.0,0.00012304,2]
[346865966,1735333907241,500.0,0.00012578,2]
[346865967,1735333907491,500.0,0.00012852,2]
[346865968,1735333909782,500.0,0.00011482,2]
[346865969,1735333911049,164.55859237,0.00011482,2]
[346865970,1735333911405,500.0,0.00011481,2]
[346865971,1735333912622,500.0,0.00011483,2]
[346865972,1735333912800,299.3,0.00011756,2]
[346865973,1735333912946,500.0,0.00011482,2]
[346865974,1735333913203,500.0,0.00011756,2]
[346865975,1735333913757,500.0,0.00011482,2]
[346865976,1735333915065,500.0,0.00011481,2]
[346865977,1735333915356,500.0,0.00011755,2]
[346865978,1735333915385,500.0,0.00011482,2]
[346865979,1735333915611,500.0,0.00012029,2]
[346865980,1735333915640,500.0,0.00011756,2]
[346865981,1735333915668,500.0,0.00011482,2]
[346865982,1735333915855,500.0,0.00012303,2]
[346865983,1735333915884,221.91,0.0001203,2]
[346865984,1735333915921,500.0,0.00011756,2]
[346865985,1735333923281,500.0,0.00011481,2]
[346865986,1735333925667,500.0,0.00011482,2]
[346865987,1735333925954,500.0,0.00011756,2]
[346865988,1735333936923,500.0,0.00011482,2]
[346865989,1735333937210,480.0,0.00011756,2]
[346865990,1735333937235,20.0,0.00011756,2]
[346865991,1735333941197,500.0,0.00011482,2]
[346865992,1735333945588,345.76,0.00011482,2]
[346865993,1735333946767,500.0,0.00011482,2]
[346865994,1735333948147,500.0,0.00011481,2]
[346865995,1735333948401,500.0,0.00011755,2]
[346865996,1735333948595,500.0,0.00011482,2]
[346865997,1735333948645,500.0,0.00012029,2]
[346865998,1735333948858,500.0,0.00011756,2]
[346865999,1735333948906,523.78,0.00012303,2]
[346866000,1735333949220,500.0,0.0001203,2]
[346866001,1735333949376,500.0,0.00012304,2]
[346866014,1735334827094,-300.0,0.00010617,2]
[346866015,1735334827117,-500.0,0.00010618,2]
[346866016,1735334827139,-500.0,0.00010618,2]
[346866017,1735334827160,-500.0,0.00010618,2]
[346866018,1735334827187,-267.76504273,0.00010618,2]
[346866019,1735334827218,-500.0,0.00010618,2]
[346866020,1735334827247,-500.0,0.00010618,2]
[346866021,1735334827274,-194.94844497,0.00010618,2]
[346866022,1735334834109,-305.05155503,0.00010618,2]
[346866023,1735334834136,-297.06435043,0.00010618,2]
[346866024,1735334841124,-202.93564957,0.00010618,2]
[346866025,1735334841146,-500.0,0.00010618,2]
[346866026,1735334841168,-500.0,0.00010618,2]
[346866027,1735334841189,-24900.0,0.00010619,2]
[346866028,1735334841210,-531.1370353,0.00010756,2]
[346866029,1735334841233,-500.0,0.00010892,2]
[346866030,1735334841255,-313.64082606,0.00010892,2]
[346866031,1735334841277,-500.0,0.00010892,2]
[346866032,1735334841299,-500.0,0.00010892,2]
[346866033,1735334841320,-500.0,0.00010892,2]
[346866034,1735334841342,-500.0,0.00010892,2]
[346866035,1735334841363,-500.0,0.00010892,2]
[346866036,1735334841385,-500.0,0.00010892,2]
[346866037,1735334841407,-500.0,0.00010892,2]
[346866038,1735334841428,-338.93812168,0.00011166,2]
[346866039,1735334853103,-161.06187832,0.00011166,2]
[346866040,1735334853128,-500.0,0.00011166,2]
[346866041,1735334853153,-500.0,0.00011166,2]
[346866042,1735334853176,-500.0,0.00011166,2]
[346866043,1735334853201,-500.0,0.00011166,2]
[346866044,1735334853224,-500.0,0.00011166,2]
[346866045,1735334853247,-314.23422214,0.00011166,2]
[346866047,1735334907955,275.34024615,0.0001,2]
[346866051,1735334946104,-300.0,0.00010617,2]
[346866052,1735334946126,-500.0,0.00010618,2]
[346866053,1735334946148,-573.50295927,0.00010618,2]
[346866054,1735334946170,-500.0,0.00010618,2]
[346866055,1735334946190,-500.0,0.00010618,2]
[346866056,1735334946214,-620.26,0.00010618,2]
[346866057,1735334946234,-500.0,0.00010618,2]
[346866058,1735334946256,-500.0,0.00010618,2]
[346866059,1735334946278,-500.0,0.00010892,2]
[346866060,1735334946298,-500.0,0.00010892,2]
[346866061,1735334946318,-500.0,0.00010892,2]
[346866062,1735334946339,-620.26,0.00010892,2]
[346866063,1735334946359,-500.0,0.00010892,2]
[346866064,1735334946379,-185.76577786,0.00011166,2]
[346866065,1735334946398,-500.0,0.00011166,2]
[346866066,1735334946416,-500.0,0.00011166,2]
[346866067,1735334946435,-500.0,0.00011166,2]
[346866068,1735334946456,-503.72882992,0.00011166,2]
[346866069,1735334946477,-620.26,0.00011166,2]
[346866070,1735334946499,-345.2095247,0.00011381,2]
[346866071,1735334946522,-500.0,0.0001144,2]
[346866072,1735334946542,-500.0,0.0001144,2]
[346866073,1735334946565,-500.0,0.0001144,2]
[346866074,1735334946586,-500.0,0.0001144,2]
[346866075,1735334946607,-500.0,0.0001144,2]
[346866076,1735334946628,-500.0,0.0001144,2]
[346866077,1735334946650,-620.26,0.0001144,2]
[346866078,1735334946671,-500.0,0.00011479,2]
[346866079,1735334946690,-500.0,0.00011479,2]
[346866080,1735334946710,-500.0,0.00011479,2]
[346866081,1735334946735,-620.7468438,0.00011479,2]
[346866082,1735334946759,-500.0,0.00011479,2]
[346866083,1735334946781,-333.36717737,0.00011479,2]
[346866084,1735334946806,-500.0,0.00011479,2]
[346866085,1735334946828,-500.0,0.00011479,2]
[346866086,1735334946850,-500.0,0.00011479,2]
[346866087,1735334946871,-500.0,0.00011479,2]
[346866088,1735334946892,-500.0,0.00011479,2]
[346866089,1735334946914,-500.0,0.00011479,2]
[346866090,1735334946934,-500.0,0.00011479,2]
[346866091,1735334946956,-500.0,0.00011479,2]
[346866092,1735334946978,-500.0,0.00011479,2]
[346866093,1735334947000,-500.0,0.00011479,2]
[346866094,1735334947021,-500.0,0.00011479,2]
[346866095,1735334947042,-500.0,0.00011479,2]
[346866096,1735334947066,-500.0,0.00011479,2]
[346866097,1735334947086,-500.0,0.00011479,2]
[346866098,1735334947109,-115.7154131,0.00011479,2]
[346866099,1735334947141,-384.2845869,0.00011479,2]
[346866100,1735334947161,-500.0,0.00011479,2]
[346866101,1735334947182,-500.0,0.00011479,2]
[346866102,1735334947202,-500.0,0.00011479,2]
[346866103,1735334947222,-587.14503212,0.00011479,2]
[346866104,1735334947242,-482.43460962,0.00011479,2]
[346866105,1735334947263,-500.0,0.00011479,2]
[346866106,1735334947283,-500.0,0.00011479,2]
[346866107,1735334947307,-500.0,0.00011479,2]
[346866108,1735334947329,-500.0,0.00011479,2]
[346866109,1735334947351,-500.0,0.00011479,2]
[346866110,1735334947371,-500.0,0.00011479,2]
[346866111,1735334947391,-500.0,0.00011479,2]
[346866112,1735334947411,-500.0,0.00011479,2]
[346866113,1735334947432,-500.0,0.00011479,2]
[346866114,1735334947453,-500.0,0.00011479,2]
[346866115,1735334947474,-500.0,0.00011479,2]
[346866116,1735334947495,-500.0,0.00011479,2]
[346866117,1735334947515,-500.0,0.00011479,2]
[346866118,1735334947536,-500.0,0.00011479,2]
[346866119,1735334947557,-500.0,0.0001148,2]
[346866120,1735334947578,-500.0,0.0001148,2]
[346866121,1735334947598,-500.0,0.0001148,2]
[346866122,1735334947622,-500.0,0.0001148,2]
[346866123,1735334947645,-500.0,0.0001148,2]
[346866124,1735334947667,-500.0,0.0001148,2]
[346866125,1735334947801,-500.0,0.0001148,2]
[346866126,1735334947821,-500.0,0.0001148,2]
[346866127,1735334947841,-500.0,0.0001148,2]
[346866128,1735334947862,-500.0,0.0001148,2]
[346866129,1735334947882,-500.0,0.0001148,2]
[346866130,1735334947903,-500.0,0.0001148,2]
[346866131,1735334947923,-500.0,0.0001148,2]
[346866132,1735334947944,-500.0,0.0001148,2]
[346866133,1735334947965,-500.0,0.0001148,2]
[346866134,1735334947986,-500.0,0.0001148,2]
[346866135,1735334948006,-500.0,0.0001148,2]
[346866136,1735334948027,-500.0,0.0001148,2]
[346866137,1735334948048,-61.23852676,0.0001148,2]
[346866138,1735334948088,-438.76147324,0.0001148,2]
[346866139,1735334948110,-500.0,0.0001148,2]
[346866140,1735334948132,-512.292235,0.0001148,2]
[346866141,1735334948153,-500.0,0.0001148,2]
[346866142,1735334948176,-500.0,0.0001148,2]
[346866143,1735334948199,-500.0,0.0001148,2]
[346866144,1735334948222,-500.0,0.0001148,2]
[346866145,1735334948245,-500.0,0.0001148,2]
[346866146,1735334948266,-500.0,0.0001148,2]
[346866147,1735334948288,-500.0,0.0001148,2]
[346866148,1735334948309,-500.0,0.0001148,2]
[346866149,1735334948331,-500.0,0.0001148,2]
[346866150,1735334948353,-500.0,0.0001148,2]
[346866151,1735334948373,-500.0,0.0001148,2]
[346866152,1735334948393,-500.0,0.0001148,2]
[346866153,1735334948414,-500.0,0.0001148,2]
[346866154,1735334948435,-500.0,0.0001148,2]
[346866155,1735334948458,-500.0,0.0001148,2]
[346866156,1735334948481,-500.0,0.0001148,2]
[346866157,1735334948504,-500.0,0.0001148,2]
[346866158,1735334948524,-500.0,0.0001148,2]
[346866159,1735334948546,-500.0,0.0001148,2]
[346866160,1735334948567,-500.0,0.0001148,2]
[346866161,1735334948590,-500.0,0.0001148,2]
[346866162,1735334948612,-500.0,0.0001148,2]
[346866163,1735334948635,-500.0,0.0001148,2]
[346866164,1735334948656,-500.0,0.0001148,2]
[346866165,1735334948677,-500.0,0.0001148,2]
[346866166,1735334948700,-500.0,0.0001148,2]
[346866167,1735334948726,-500.0,0.0001148,2]
[346866168,1735334948747,-500.0,0.0001148,2]
[346866169,1735334948771,-500.0,0.0001148,2]
[346866170,1735334948795,-500.0,0.0001148,2]
[346866171,1735334948818,-500.0,0.0001148,2]
[346866172,1735334948839,-500.0,0.0001148,2]
[346866173,1735334948860,-500.0,0.0001148,2]
[346866174,1735334948881,-500.0,0.0001148,2]
[346866175,1735334948902,-500.0,0.0001148,2]
[346866176,1735334948922,-500.5481474,0.0001148,2]
[346866177,1735334948943,-500.0,0.0001148,2]
[346866178,1735334948963,-501.47448581,0.0001148,2]
[346866179,1735334948984,-500.0,0.0001148,2]
[346866180,1735334949004,-500.0,0.0001148,2]
[346866181,1735334949025,-500.0,0.0001148,2]
[346866182,1735334949046,-500.0,0.0001148,2]
[346866183,1735334949066,-500.0,0.0001148,2]
[346866184,1735334949087,-500.0,0.00011481,2]
[346866185,1735334949108,-500.0,0.00011481,2]
[346866186,1735334949137,-500.0,0.00011481,2]
[346866187,1735334949161,-500.0,0.00011481,2]
[346866188,1735334949184,-314.87598204,0.00011481,2]
[346866189,1735334949208,-283.16970756,0.00011481,2]
[346866190,1735334949232,-500.0,0.00011481,2]
[346866191,1735334949256,-500.0,0.00011481,2]
[346866192,1735334949280,-500.0,0.00011481,2]
[346866193,1735334949310,-500.0,0.00011481,2]
[346866194,1735334949338,-500.0,0.00011481,2]
[346866195,1735334949364,-500.0,0.00011481,2]
[346866196,1735334949390,-500.0,0.00011481,2]
[346866197,1735334949414,-500.0,0.00011481,2]
[346866198,1735334949439,-550.46081573,0.00011481,2]
[346866199,1735334949465,-500.0,0.00011481,2]
[346866200,1735334949488,-500.0,0.00011481,2]
[346866201,1735334949512,-515.31405967,0.00011481,2]
[346866202,1735334949537,-174.68749629,0.00011481,2]
[346866203,1735334949563,-504.09092616,0.00011481,2]
[346866204,1735334949585,-500.0,0.00011481,2]
[346866205,1735334949607,-500.0,0.00011481,2]
[346866206,1735334949629,-500.0,0.00011481,2]
[346866207,1735334949649,-500.0,0.00011481,2]
[346866208,1735334949672,-500.0,0.00011481,2]
[346866209,1735334949692,-514.97506644,0.00011481,2]
[346866210,1735334949715,-500.0,0.00011481,2]
[346866211,1735334949741,-500.0,0.00011481,2]
[346866212,1735334949764,-500.0,0.00011481,2]
[346866213,1735334949785,-500.0,0.00011481,2]
[346866214,1735334949808,-500.0,0.00011481,2]
[346866215,1735334949830,-500.0,0.00011481,2]
[346866216,1735334949851,-500.0,0.00011481,2]
[346866217,1735334949875,-500.0,0.00011481,2]
[346866218,1735334949896,-507.9459937,0.00011481,2]
[346866219,1735334949919,-500.0,0.00011481,2]
[346866220,1735334949941,-500.0,0.00011481,2]
[346866221,1735334949963,-500.0,0.00011481,2]
[346866222,1735334949984,-500.0,0.00011481,2]
[346866223,1735334950005,-500.0,0.00011481,2]
[346866224,1735334950026,-500.0,0.00011481,2]
[346866225,1735334950049,-500.0,0.00011481,2]
[346866226,1735334950070,-505.1851468,0.00011481,2]
[346866227,1735334950090,-504.66284099,0.00011481,2]
[346866228,1735334950110,-500.0,0.00011481,2]
[346866229,1735334950132,-500.0,0.00011481,2]
[346866230,1735334950152,-408.49104663,0.00011481,2]
[346866231,1735334950172,-500.0,0.00011481,2]
[346866232,1735334950192,-502.76896839,0.00011481,2]
[346866233,1735334950212,-500.0,0.00011481,2]
[346866234,1735334950232,-502.42713031,0.00011481,2]
[346866235,1735334950253,-502.75235413,0.00011481,2]
[346866236,1735334950361,-500.0,0.00011481,2]
[346866237,1735334950382,-503.66664995,0.00011481,2]
[346866238,1735334950402,-502.62744368,0.00011481,2]
[346866239,1735334950422,-500.71518819,0.00011481,2]
[346866240,1735334950443,-500.0,0.00011481,2]
[346866241,1735334950465,-501.87315401,0.00011481,2]
[346866242,1735334950486,-500.0,0.00011481,2]
[346866243,1735334950506,-502.02783351,0.00011481,2]
[346866244,1735334950526,-260.86331957,0.00011481,2]
[346866245,1735334950546,-523.28265591,0.00011481,2]
[346866246,1735334950567,-500.0,0.00011481,2]
[346866247,1735334950589,-501.70631084,0.00011481,2]
[346866248,1735334950609,-501.33977597,0.00011481,2]
[346866249,1735334950631,-326.23176336,0.00011481,2]
[346866250,1735334950653,-500.0,0.00011481,2]
[346866251,1735334950674,-500.0,0.00011481,2]
[346866252,1735334950694,-502.52809835,0.00011481,2]
[346866253,1735334950716,-500.0,0.00011481,2]
[346866254,1735334950738,-500.0,0.00011481,2]
[346866255,1735334950760,-500.0,0.00011481,2]
[346866256,1735334950782,-500.0,0.00011481,2]
[346866257,1735334950805,-500.0,0.00011481,2]
[346866258,1735334950828,-500.0,0.00011481,2]
[346866259,1735334950849,-500.0,0.00011481,2]
[346866260,1735334950871,-500.0,0.00011481,2]
[346866261,1735334950891,-508.36385705,0.00011481,2]
[346866262,1735334950915,-563.92199068,0.00011481,2]
[346866263,1735334950936,-500.0,0.00011481,2]
[346866264,1735334950957,-500.0,0.00011481,2]
[346866265,1735334950978,-500.0,0.00011481,2]
[346866266,1735334950999,-500.0,0.00011481,2]
[346866267,1735334951020,-501.99544014,0.00011481,2]
[346866268,1735334951043,-500.0,0.00011481,2]
[346866269,1735334951065,-500.0,0.00011481,2]
[346866270,1735334951085,-500.0,0.00011481,2]
[346866271,1735334951106,-500.0,0.00011481,2]
[346866272,1735334951126,-500.0,0.00011481,2]
[346866273,1735334951148,-500.0,0.00011481,2]
[346866274,1735334951170,-500.0,0.00011481,2]
[346866275,1735334951191,-500.0,0.00011481,2]
[346866276,1735334951212,-500.0,0.00011481,2]
[346866277,1735334951234,-500.0,0.00011481,2]
[346866278,1735334951254,-500.0,0.00011481,2]
[346866279,1735334951274,-500.0,0.00011481,2]
[346866280,1735334951295,-567.89376908,0.00011481,2]
[346866281,1735334951317,-500.0,0.00011481,2]
[346866282,1735334951340,-223.39949324,0.00011481,2]
[346866283,1735334951361,-500.0,0.00011481,2]
[346866284,1735334951381,-500.63681276,0.00011481,2]
[346866285,1735334951402,-500.0,0.00011481,2]